[Event "56th Biel GMT Classical 2023"]
[White "Deac,Bogdan-Daniel"]
[Black "Le,Quang Liem"]
[Site "Biel"]
[Round "1.1"]
[Annotator "TA"]
[Result "0-1"]
[Date "2023.07.18"]
[WhiteElo "2693"]
[BlackElo "2728"]
[PlyCount "100"]
[TimeControl "60"]

{[%evp 10,100,20,0,14,21,21,12,18,18,17,15,31,0,0,6,0,0,0,0,0,0,-16,-17,-8,-37,0,0,6,9,22,0,0,0,0,0,0,-16,-14,-7,0,-9,0,-11,0,-18,-18,-36,-12,-18,-18,-18,-18,-48,-14,-45,-10,-92,-80,-124,-65,-65,-65,-141,-116,-233,-214,-222,-243,-244,-126,-236,-220,-240,-246,-282,-253,-660,-602,-594,-594,-594,-584,-4606,-8408,-29983,-29984,-29979,-29977,-29977,-29977,-29977,-29978]} 1. Nf3 {[%emt 0:0:2]} d5 {[%emt 0:1:0]} 2. d4 {[%emt 0:0:6][%cal Bd2d4,Bd4c5][%mdl 32]} Nf6 {[%emt 0:0:12]} 3. c4 {[%emt 0:0:5]} e6 {[%emt 0:0:15]} 4. Nc3 {[%emt 0:0:1]} Bb4 {[%emt 0:1:19]} 5. Qb3 {[%emt 0:6:2]} c5 {[%emt 0:0:37]} 6. dxc5 {[%emt 0:0:29]} Nc6 {[%emt 0:0:18] [#] And now ...d4 would win. D38: Queen's Gambit Declined: Ragozin Defence (4 Nf3 Bb4).} 7. Bg5 {[%emt 0:1:14]} Qa5 $1 {[%emt 0:1:35] Hoping for ...d4. The main line 7...Qa5 scores better than 7...dxc4.} ({Don't take} 7... Bxc5 8. cxd5 exd5 9. O-O-O $16 )8. Bxf6 {[%emt 0:0:40]} dxc4 {[%emt 0:0:13] The position is equal.} 9. Qxc4 {[%emt 0:0:4]} gxf6 {[%emt 0:0:12]} 10. Rc1 {[%emt 0:0:31]} Qxc5 {[%emt 0:0:21]} 11. Qb3 {[%emt 0:10:16] [#]} (11. Qf4 {seems wilder.} Ke7 12. g3 e5 13. Qe4 )Na5 $146 {[%emt 0:12:9]} ({Predecessor:} 11... Qb6 12. e3 Bd7 13. a3 Ba5 14. Qc2 Rc8 15. Be2 Bxc3+ 16. bxc3 Qc5 17. Qb2 Qb6 {½-½ Shirov,A (2696)-Hou,Y (2609) FIDE World Cup 2013 (1.1)} )12. Qc2 {[%emt 0:0:50]} Bd7 {[%emt 0:0:33]} 13. a3 {[%emt 0:2:2]} Bxc3+ {[%emt 0:0:9]} 14. Qxc3 {[%emt 0:0:5]} Qxc3+ {[%emt 0:0:11]} 15. Rxc3 {[%emt 0:0:4]} Ke7 {[%emt 0:0:18] Threatening ...Rhc8.} 16. b4 {[%emt 0:6:27]} Nc6 {[%emt 0:0:53]} 17. e3 {[%emt 0:4:46]} Rac8 {[%emt 0:33:25]} (17... a5 $5 {[%cal Ra5b4]} 18. b5 Ne5 $11 )18. Kd2 {[%emt 0:31:6]} Rhd8 19. Be2 {[%emt 0:22:31]} Be8+ {[%emt 0:0:0]} 20. Rd3 {[%emt 0:0:0]} Ne5 {[%emt 0:2:51]} 21. Nxe5 {[%emt 0:0:0]} fxe5 {[%emt 0:0:18]} 22. Rxd8 {[%emt 0:0:0]} Rxd8+ $11 {[%emt 0:0:1][%mdl 4096] Endgame KRB-KRB} 23. Kc3 {[%emt 0:0:0]} Bc6 {[%emt 0:2:52]} 24. f3 {[%emt 0:0:0]} f5 {[%emt 0:1:9]} 25. g3 {[%emt 0:0:0]} Rg8 {[%emt 0:6:46]} 26. Rg1 {[%emt 0:3:51]} h5 {[%emt 0:6:48][%cal Bh7h5,Bh5h4][%mdl 32]} 27. Kd2 {[%emt 0:7:29]} h4 {[%emt 0:6:7]} 28. Ke1 {[%emt 0:8:37]} Bd5 {[%emt 0:1:30]} 29. g4 {[%emt 0:0:23]} Kf6 {[%emt 0:2:26]} 30. Kd2 {[%emt 0:0:46]} b6 {[%emt 0:2:48]} 31. Ke1 {[%emt 0:4:38]} Rd8 {[%emt 0:5:23]} 32. Rf1 {[%emt 0:1:11]} Bc6 {[%emt 0:1:1]} 33. e4 {[%emt 0:1:44]} (33. gxf5 $11 exf5 34. f4 )fxe4 $17 {[%emt 0:3:36] aiming for ...e3. Black is more active.} 34. fxe4+ {[%emt 0:0:2] [#]} Kg7 {[%emt 0:1:36]} ({Black should play} 34... Kg6 $1 $17 35. Bc4 Bxe4 36. Bxe6 Kg5 )35. Rf3 $15 {[%emt 0:0:8]} Kg6 $1 {[%emt 0:7:3]} ({Of course not} 35... Bxe4 36. Re3 Bg6 37. Rxe5 $11 )36. Rc3 {[%emt 0:1:27] Black converts the advantage convincingly.} (36. Bd3 $15 )Bxe4 $17 {[%emt 0:0:10]} 37. Rc7 {[%emt 0:0:8]} (37. Re3 $17 Rd4 38. Rc3 )a5 $19 {[%emt 0:1:8]} 38. bxa5 {[%emt 0:0:57]} bxa5 {[%emt 0:0:1]} 39. Ra7 {[%emt 0:0:19]} Rd5 {[%emt 0:7:33]} (39... Bd5 $19 {...Rc8 is the strong threat.} 40. Rxa5 Rb8 )40. Bc4 {[%emt 0:0:0]} (40. Ra6 $17 )Rc5 {[%emt 0:0:0]} 41. Bxe6 {[%emt 0:0:57]} Kf6 {[%emt 0:8:38]} 42. Bg8 {[%emt 0:12:5]} Rc2 {[%emt 0:13:36]} 43. Rxa5 $2 {[%emt 0:1:10]} (43. h3 Rh2 44. Rxa5 )Rxh2 {[%emt 0:0:17] Strongly threatening ...h3.} 44. Bd5 {[%emt 0:1:47]} Bd3 {[%emt 0:3:6] ...h3 would be deadly.} 45. Bf3 {[%emt 0:0:2]} h3 {[%emt 0:5:14] White must now prevent ...e4.} 46. g5+ {[%emt 0:0:43]} Kxg5 {[%emt 0:0:53] ( -> ...Kf4)} 47. Rxe5+ {[%emt 0:0:20]} Kf4 {[%emt 0:0:9] Black mates.} 48. Rd5 {[%emt 0:0:1]} Bc4 {[%emt 0:2:9]} 49. Rd4+ {[%emt 0:0:19]} Kxf3 {[%emt 0:0:7]} 50. Rxc4 {[%emt 0:0:2]} Ra2 {[%emt 0:0:30] Weighted Error Value: White=0.55/Black=0.09 (flawless)} 0-1

[Event "56th Biel GMT Classical 2023"]
[White "Keymer,Vincent"]
[Black "Moussard,Jules"]
[Site "Biel"]
[Round "1.2"]
[Annotator "TA"]
[Result "1/2-1/2"]
[Date "2023.07.18"]
[WhiteElo "2690"]
[BlackElo "2654"]
[PlyCount "71"]
[TimeControl "60"]

{[%evp 10,71,17,10,21,2,1,11,22,-17,-6,-6,-2,-2,-5,-13,14,9,13,11,17,25,12,12,18,0,0,-20,-30,-33,-8,-10,-27,-31,-31,-30,-31,-30,-30,-30,-31,-29,-25,-25,-25,-25,-19,-19,-19,-19,-20,-23,-22,-27,-27,-51,-47,-41,0,-46,0,-53,0,-63]} 1. Nf3 {[%emt 0:0:3]} Nf6 {[%emt 0:0:26]} 2. c4 {[%emt 0:0:4]} e6 {[%emt 0:0:13]} 3. b3 {[%emt 0:0:5]} d5 {[%emt 0:1:2]} 4. Bb2 {[%emt 0:0:4]} Bd6 {[%emt 0:6:0]} 5. g3 {[%emt 0:0:28]} O-O {[%emt 0:0:40]} 6. Bg2 {[%emt 0:0:26]} Re8 {[%emt 0:10:10] Recently 6...b6 got a lot of attention. A13: English Opening: 1...e6.} 7. Nc3 {[%emt 0:12:10] [#]} dxc4 $146 {[%emt 0:3:59]} ({Predecessor:} 7... Nc6 8. O-O a6 9. Ne1 d4 10. Ne4 Nxe4 11. Bxe4 f5 12. Bg2 e5 13. Qb1 Bd7 14. Nf3 {½-½ Wawrzynowicz,M-Komandera,P (1270) POL-chT U19 2nd League 2012 (7)} )8. bxc4 {[%emt 0:0:18]} e5 {[%emt 0:0:20]} 9. Ng5 {[%emt 0:5:18]} h6 {[%emt 0:6:38]} 10. Nge4 {[%emt 0:0:51]} Nxe4 {[%emt 0:0:56]} 11. Nxe4 {[%emt 0:0:32]} Bf8 {[%emt 0:1:23]} 12. O-O {[%emt 0:3:6]} Nd7 {[%emt 0:6:54]} (12... f5 $5 13. Nc3 $8 c6 $11 )13. e3 {[%emt 0:18:51]} c6 {[%emt 0:17:24]} (13... f5 $5 14. Nc3 $8 c6 $11 )14. d3 {[%emt 0:5:53]} Nc5 {[%emt 0:10:20]} 15. Nxc5 {[%emt 0:4:5]} Bxc5 {[%emt 0:0:8]} 16. Qb3 {[%emt 0:0:32]} Qc7 {[%emt 0:1:15]} 17. Kh1 {[%emt 0:4:50]} Bf5 {[%emt 0:4:24]} 18. Qc3 {[%emt 0:12:25]} Rad8 {[%emt 0:3:5]} 19. Rad1 {[%emt 0:0:6]} Qd7 {[%emt 0:7:9][%cal Rf5d3]} 20. Rd2 {[%emt 0:4:54]} Qd6 {[%emt 0:8:3] [#] Hoping for ...Bb4.} (20... Bxd3 $2 21. Rfd1 $18 )21. Qb3 {[%emt 0:6:0]} Bxd3 {[%emt 0:4:2]} 22. Rfd1 {[%emt 0:7:18][%cal Rd2d3]} e4 {[%emt 0:0:27]} 23. Bf1 $1 {[%emt 0:0:33][%cal Rf1d3]} Bb4 {[%emt 0:6:10]} 24. Bc3 {[%emt 0:1:1]} Bxc3 {[%emt 0:2:20]} 25. Qxc3 {[%emt 0:0:5]} Qe5 {[%emt 0:2:46]} 26. Qxe5 {[%emt 0:2:10]} Rxe5 {[%emt 0:0:5]} 27. Bxd3 {[%emt 0:0:15]} exd3 {[%emt 0:0:5]} 28. Rxd3 {[%emt 0:0:4]} Rxd3 {[%emt 0:0:4]} 29. Rxd3 $11 {[%emt 0:0:6][%mdl 4096] Endgame KR-KR} Ra5 {[%emt 0:0:25]} 30. a3 {[%emt 0:3:48]} Kf8 {[%emt 0:0:16]} 31. Kg2 {[%emt 0:1:44]} Ke7 {[%emt 0:0:57]} 32. Kf3 {[%emt 0:1:59]} Rc5 {[%emt 0:1:46]} 33. Rd4 {[%emt 0:0:48]} Ra5 {[%emt 0:0:5]} 34. Rd3 {[%emt 0:0:4]} Rc5 {[%emt 0:2:50]} 35. Rd4 {[%emt 0:0:7]} Ra5 {[%emt 0:0:8]} 36. Rd3 {[%emt 0:0:35] Weighted Error Value: White=0.05 (flawless) /Black=0.09 (flawless)} 1/2-1/2

[Event "56th Biel GMT Classical 2023"]
[White "Yu,Yangyi"]
[Black "Erigaisi Arjun"]
[Site "Biel"]
[Round "1.3"]
[Annotator "TA"]
[Result "1/2-1/2"]
[Date "2023.07.18"]
[WhiteElo "2735"]
[BlackElo "2710"]
[PlyCount "155"]
[TimeControl "60"]

{[%evp 18,155,11,23,0,0,0,0,5,0,0,0,0,0,0,-18,0,1,14,14,14,0,38,0,4,0,5,-3,0,0,15,6,12,0,0,6,20,8,24,36,30,28,18,29,60,60,64,77,68,65,95,89,122,106,110,112,108,107,114,122,131,91,170,182,174,170,168,163,178,179,227,232,236,245,290,291,283,295,261,252,622,614,566,151,159,83,149,144,137,125,166,162,160,133,122,136,130,114,164,177,162,158,166,160,145,145,166,178,232,235,208,223,190,120,162,160,191,31,70,0,0,0,0,0,0,0,0,0,0,0,0,0,0,0,0,0,0,0,0,0]} 1. e4 {[%emt 0:0:4]} e5 {[%emt 0:0:5]} 2. Nf3 {[%emt 0:0:28]} Nc6 {[%emt 0:0:4]} 3. Bc4 {[%emt 0:1:33]} Bc5 {[%emt 0:0:7]} 4. d3 {[%emt 0:0:12]} Nf6 {[%emt 0:0:6]} 5. O-O {[%emt 0:0:20]} d6 {[%emt 0:0:6]} 6. c3 {[%emt 0:0:20]} O-O {[%emt 0:0:8]} 7. Nbd2 {[%emt 0:1:26]} Bb6 {[%emt 0:0:34]} 8. Bb3 {[%emt 0:2:6]} Ne7 {[%emt 0:0:7]} 9. Nc4 {[%emt 0:1:12]} Ng6 {[%emt 0:0:6]} 10. Re1 {[%emt 0:6:36]} Re8 {[%emt 0:0:8] C54: Giuoco Piano: 4 c3 Nf6, main lines with 5 d4 and 5 d3.} 11. a4 {[%emt 0:3:5]} c6 {[%emt 0:1:20]} 12. Nxb6 {[%emt 0:2:21]} axb6 {[%emt 0:0:6]} 13. Be3 {[%emt 0:4:39]} h6 {[%emt 0:4:35]} 14. h3 {[%emt 0:16:20]} d5 {[%emt 0:1:18]} 15. Bc2 {[%emt 0:1:16]} c5 {[%emt 0:3:29]} 16. b4 {[%emt 0:2:38]} d4 {[%emt 0:11:37]} 17. cxd4 {[%emt 0:1:0]} cxd4 {[%emt 0:1:18]} 18. Bd2 {[%emt 0:0:14] [#]} Nh7 $146 {[%emt 0:1:23]} ({Predecessor:} 18... Be6 19. Bb3 Qd7 20. Kh2 b5 21. Bxe6 Rxe6 22. axb5 Rxa1 23. Qxa1 Qxb5 24. Qa8+ Kh7 {1-0 Durarbayli,V (2628)-Kasimdzhanov,R (2670) Shusha Rapid 2022 (6)} )19. Bb3 {[%emt 0:1:30]} Be6 {[%emt 0:2:37]} 20. a5 {[%emt 0:4:38]} Nhf8 {[%emt 0:2:57]} 21. Ba4 {[%emt 0:5:53]} Bd7 {[%emt 0:1:38]} 22. Bb3 {[%emt 0:1:10]} Be6 {[%emt 0:3:11]} 23. Ba4 {[%emt 0:2:0]} Bd7 {[%emt 0:0:7]} 24. Bxd7 {[%emt 0:0:30]} Qxd7 {[%emt 0:3:20]} 25. axb6 {[%emt 0:3:10]} Qb5 {[%emt 0:3:50]} 26. Qb3 {[%emt 0:0:52]} Nd7 {[%emt 0:3:1]} 27. Rec1 {[%emt 0:4:41]} Qxb6 {[%emt 0:5:37]} 28. Qd5 {[%emt 0:1:11]} Nf6 {[%emt 0:1:46]} 29. Qc4 {[%emt 0:0:24]} Rxa1 {[%emt 0:3:32]} 30. Rxa1 {[%emt 0:0:8]} Qc6 {[%emt 0:0:5]} 31. Qxc6 {[%emt 0:3:32]} bxc6 {[%emt 0:0:5]} 32. Ra5 {[%emt 0:1:34]} Nd7 {[%emt 0:8:3][%cal Oc6c5]} 33. Ra7 {[%emt 0:2:14]} Ngf8 {[%emt 0:6:20]} 34. Rc7 {[%emt 0:0:28]} Nb8 {[%emt 0:0:7]} 35. Nh4 {[%emt 0:4:28]} Ne6 {[%emt 0:5:49]} 36. Ra7 {[%emt 0:0:23]} Rd8 {[%emt 0:2:21]} 37. Nf5 {[%emt 0:1:32]} Kf8 {[%emt 0:0:9]} 38. g3 $1 {[%emt 0:3:55] White is much more active.} h5 {[%emt 0:11:14]} 39. Kf1 {[%emt 0:4:3]} g6 {[%emt 0:1:56]} (39... Rd7 $16 {might work better.} 40. Ra8 Rd8 )40. Bh6+ $1 $18 {[%emt 0:0:0]} Kg8 {[%emt 0:0:0]} 41. Ne7+ {[%emt 0:2:9]} Kh7 {[%emt 0:0:11]} 42. Bd2 {[%emt 0:0:8]} Kg7 {[%emt 0:5:32]} 43. f4 $1 {[%emt 0:3:1]} Kf6 {[%emt 0:1:41]} (43... Nf8 $142 44. Rb7 (44. fxe5 Rd7 $16 )exf4 )44. h4 $1 {[%emt 0:5:23]} exf4 {[%emt 0:16:3]} 45. gxf4 {[%emt 0:0:20]} (45. Bxf4 Nxf4 46. gxf4 Re8 $14 )Re8 {[%emt 0:0:5]} 46. f5 {[%emt 0:12:8]} gxf5 {[%emt 0:1:39]} 47. exf5 {[%emt 0:2:11]} (47. Nxf5 $6 Rd8 48. Ra8 Rf8 $18 )Nf8 {[%emt 0:2:34]} 48. Bg5+ {[%emt 0:2:29]} Ke5 $2 {[%emt 0:0:20]} (48... Kg7 49. f6+ Kh7 )49. Ra5+ {[%emt 0:5:22]} Kd6 {[%emt 0:0:6]} 50. f6 $2 {[%emt 0:0:7]} (50. Ng8 $1 $18 {Threatens to win with Bf4+.} Re5 51. Bf4 {[%mdl 64] Pin} )Kc7 {[%emt 0:6:42]} 51. Nf5 {[%emt 0:4:59]} (51. Bf4+ $142 Kb6 52. Rxh5 )Nbd7 {[%emt 0:1:18]} ({Better is} 51... Nfd7 )52. Nxd4 $16 {[%emt 0:8:38]} Kb6 {[%emt 0:2:58]} 53. Nf5 $1 {[%emt 0:2:30] Hoping for Be3+.} c5 {[%emt 0:3:24]} 54. Be3 {[%emt 0:0:49]} Re6 {[%emt 0:2:5]} 55. Bxc5+ {[%emt 0:4:22]} Nxc5 {[%emt 0:0:8]} 56. Rxc5 {[%emt 0:0:5][%mdl 4096] Endgame KRN-KRN} Nd7 {[%emt 0:5:55]} 57. Ra5 {[%emt 0:2:3]} Ne5 {[%emt 0:1:50]} (57... Nxf6 $16 58. Kg2 Re2+ 59. Kf3 Rd2 )58. Nd4 $18 {[%emt 0:5:18]} Rxf6+ {[%emt 0:0:9]} 59. Ke2 {[%emt 0:0:6]} Ng6 {[%emt 0:0:44]} 60. Nf5 $1 {[%emt 0:0:0]} (60. Rxh5 $2 Nf4+ 61. Ke3 Nxh5 $19 )(60. Rb5+ Ka6 $16 )Re6+ {[%emt 0:0:0]} 61. Kd2 {[%emt 0:5:20]} f6 {[%emt 0:2:31]} 62. Rc5 {[%emt 0:9:1]} Re5 {[%emt 0:1:36]} (62... Re8 $142 63. Ne3 Nxh4 )63. d4 {[%emt 0:1:30]} Re4 {[%emt 0:0:6]} 64. Kd3 {[%emt 0:1:9]} Rg4 {[%emt 0:1:28] [#]} 65. Kc4 {[%emt 0:5:21]} (65. b5 $1 $18 )Ne5+ {[%emt 0:2:30]} 66. Kd5 {[%emt 0:3:25]} Nf3 {[%emt 0:0:41] [#]} 67. Ke6 $2 {[%emt 0:5:34]} (67. Rc6+ $1 $18 Kb5 68. Rc4 (68. Rxf6 Kxb4 69. Rh6 Nxd4 $11 ))Nxh4 $14 {[%emt 0:28:42]} 68. d5 {[%emt 0:1:27]} ({Reject} 68. Kxf6 Nxf5 69. Kxf5 Rxd4 $11 )(68. Nxh4 $14 Re4+ 69. Kxf6 Rxd4 70. Rxh5 )Nxf5 $11 {[%emt 0:0:23] The position is equal.} 69. Kxf5 {[%emt 0:0:8] And now d6 would win.} Rxb4 {[%emt 0:0:16] KR-KR} 70. Rc3 {[%emt 0:0:41][%cal Od5d6]} Rd4 {[%emt 0:4:54]} 71. Ke6 {[%emt 0:0:35]} Re4+ $1 {[%emt 0:1:32]} 72. Kxf6 {[%emt 0:1:42] White threatens d6 and mate.} h4 $1 {[%emt 0:2:9][%cal Bh5h4,Bh4h3][%mdl 32]} 73. d6 {[%emt 0:0:4]} h3 $1 {[%emt 0:0:9]} 74. Rd3 {[%emt 0:4:15][%cal Od6d7]} (74. d7 $5 Rd4 $8 75. Ke7 $11 )Rf4+ $1 {[%emt 0:0:33]} 75. Ke6 {[%emt 0:0:57][%cal Od6d7] Threatening mate with d7!} Re4+ $1 {[%emt 0:1:51]} 76. Kd5 {[%emt 0:2:57]} (76. Kf5 $5 Re8 $8 77. d7 $11 (77. Rxh3 Kc6 $11 ))Rh4 {[%emt 0:0:16]} 77. Rb3+ {[%emt 0:1:11]} Ka7 {[%emt 0:0:20] ( -> ...h2)} 78. Rb1 {[%emt 0:2:16] Black defended with fortune.   Weighted Error Value: White=0.13 (very precise) /Black=0.20 (precise)} (78. d7 $5 h2 $8 79. Rb1 (79. d8=B {is a self mate.} h1=Q+ 80. Kd6 Qd1+ 81. Ke7 Qxb3 82. Kf6 Qf3+ 83. Ke6 Re4+ 84. Kd7 Qf7+ )h1=Q+ 80. Rxh1 Rxh1 81. Ke6 $11 )1/2-1/2

[Event "56th Biel GMT Classical 2023"]
[White "Navara,David"]
[Black "Amin,Bassem"]
[Site "Biel"]
[Round "1.4"]
[Annotator "TA"]
[Result "1-0"]
[Date "2023.07.18"]
[WhiteElo "2689"]
[BlackElo "2694"]
[PlyCount "83"]
[TimeControl "60"]

{[%evp 29,83,14,17,19,18,6,18,19,19,18,32,30,39,18,18,4,20,19,29,31,26,29,34,34,50,49,50,44,53,42,40,43,48,50,49,32,41,18,24,28,151,164,180,169,204,166,175,150,241,256,237,241,397,393,381,373]} 1. e4 {[%emt 0:0:2]} e5 {[%emt 0:1:36]} 2. Nf3 {[%emt 0:0:6]} Nc6 {[%emt 0:0:8]} 3. Bb5 {[%emt 0:0:5][%cal Bf1b5,Bb5a4,Ba4b3][%mdl 32]} a6 {[%emt 0:1:12]} 4. Ba4 {[%emt 0:0:8]} Nf6 {[%emt 0:0:5]} 5. O-O {[%emt 0:0:6]} Be7 {[%emt 0:0:5]} 6. Re1 {[%emt 0:0:5]} b5 {[%emt 0:0:7]} 7. Bb3 {[%emt 0:0:3]} d6 {[%emt 0:0:9]} 8. c3 {[%emt 0:0:3]} O-O {[%emt 0:0:9]} 9. h3 {[%emt 0:0:3]} Nb8 {[%emt 0:0:33]} 10. d4 {[%emt 0:0:4]} Nbd7 {[%emt 0:0:6]} 11. Nbd2 {[%emt 0:0:4]} Bb7 {[%emt 0:0:6]} 12. Bc2 {[%emt 0:0:4]} Re8 {[%emt 0:0:8]} 13. Nf1 {[%emt 0:0:5]} Bf8 {[%emt 0:0:7]} 14. Ng3 {[%emt 0:0:6]} g6 {[%emt 0:0:5]} 15. a4 {[%emt 0:0:4]} Bg7 {[%emt 0:0:36]} 16. Bg5 {[%emt 0:0:5] C95: Closed Ruy Lopez: Breyer Variation with 10 d4.} h6 {[%emt 0:0:42]} 17. Bc1 {[%emt 0:0:5]} c5 {[%emt 0:37:52]} 18. d5 {[%emt 0:0:29][%cal Oc3c4] The position is equal.} c4 {[%emt 0:3:26]} 19. Be3 {[%emt 0:0:5]} Nc5 {[%emt 0:1:20]} 20. Qd2 {[%emt 0:1:32]} h5 {[%emt 0:0:16]} 21. Ra3 {[%emt 0:13:6]} Qc7 {[%emt 0:3:22]} 22. Qe2 {[%emt 0:18:38] [#]} Rab8 $146 {[%emt 0:18:45]} ({Predecessor:} 22... Reb8 23. Rea1 Nfd7 24. Ng5 Qd8 25. Nf1 Qe7 26. b3 Bf6 27. h4 cxb3 28. Bxb3 Qe8 {½-½ Konstantinov,M (2417)-Jørgensen,B (2339) DEN OP Group email 2018} )23. Rea1 {[%emt 0:4:14]} Bc8 {[%emt 0:0:12]} 24. axb5 {[%emt 0:1:48]} axb5 {[%emt 0:0:6]} 25. Qe1 {[%emt 0:4:15]} Bb7 {[%emt 0:11:26]} 26. Ra5 {[%emt 0:5:35]} Qb6 {[%emt 0:0:26]} 27. Nd2 {[%emt 0:8:53]} Ra8 {[%emt 0:3:47]} 28. b4 {[%emt 0:0:25]} cxb3 $1 {[%emt 0:0:7]} 29. Nxb3 {[%emt 0:0:13]} Rxa5 {[%emt 0:0:46]} 30. Rxa5 {[%emt 0:0:28]} Ra8 $1 {[%emt 0:2:10]} 31. Rxa8+ {[%emt 0:16:19]} Bxa8 {[%emt 0:0:3]} 32. c4 {[%emt 0:6:7]} bxc4 {[%emt 0:1:2]} 33. Nxc5 {[%emt 0:5:1]} dxc5 {[%emt 0:0:2]} 34. Qa1 {[%emt 0:0:22]} Qb8 {[%emt 0:18:50]} (34... Bb7 $1 $11 )35. Nf1 $16 {[%emt 0:2:24][%cal Bg3f1,Bf1d2,Bd2c4][%mdl 32] White is more active.} ({Don't take} 35. Bxc5 Bb7 $16 )Nd7 {[%emt 0:5:15]} 36. Nd2 {[%emt 0:2:27]} c3 {[%emt 0:0:2]} 37. Qxc3 {[%emt 0:2:22]} Bf8 {[%emt 0:0:18]} 38. Nc4 {[%emt 0:1:44]} Qb4 {[%emt 0:0:30]} (38... Qa7 $16 39. Qb2 (39. Nxe5 Bg7 $16 )Bb7 )39. Qxb4 $1 $18 {[%emt 0:0:12]} cxb4 {[%emt 0:0:1] [#]} 40. Ba4 $1 {[%emt 0:0:0]} Nc5 {[%emt 0:0:0]} (40... Nb8 41. Nxe5 Bb7 )41. Bxc5 {[%emt 0:0:26]} Bxc5 {[%emt 0:3:46] [#]} 42. Bc6 $1 {[%emt 0:0:16] Prevents Bb7.   Weighted Error Value: White=0.05 (flawless) /Black=0.22 (precise)} ({Weaker is} 42. Nxe5 Bb6 43. Nd3 Kf8 44. Nxb4 Ke7 $16 )1-0

[Event "56th Biel GMT Classical 2023"]
[White "Le,Quang Liem"]
[Black "Amin,Bassem"]
[Site "Biel"]
[Round "2.1"]
[Annotator "TA"]
[Result "1-0"]
[Date "2023.07.19"]
[WhiteElo "2728"]
[BlackElo "2694"]
[PlyCount "89"]
[TimeControl "60"]

{[%evp 19,89,30,30,10,13,14,59,59,46,56,75,47,65,49,96,95,99,93,151,160,128,145,145,146,159,156,158,144,159,147,233,227,227,235,212,162,295,288,478,478,478,478,450,450,507,353,321,338,326,339,344,343,333,332,452,445,477,473,541,468,559,550,627,604,742,724,1267,1239,1162,1131,29987,29988]} 1. d4 {[%emt 0:0:4]} Nf6 {[%emt 0:0:56]} 2. c4 {[%emt 0:0:11]} g6 {[%emt 0:0:5]} 3. g3 {[%emt 0:0:12]} c6 {[%emt 0:0:24]} 4. Bg2 {[%emt 0:0:15]} d5 {[%emt 0:0:10]} 5. Qa4 {[%emt 0:0:17]} dxc4 {[%emt 0:7:9]} 6. Qxc4 {[%emt 0:1:24]} Bg7 {[%emt 0:1:6]} 7. Nf3 {[%emt 0:1:7]} O-O {[%emt 0:0:39]} 8. O-O {[%emt 0:0:13]} Be6 {[%emt 0:1:57]} 9. Qa4 {[%emt 0:0:29]} Na6 {[%emt 0:4:27]} 10. Nc3 {[%emt 0:1:49]} Qb6 {[%emt 0:3:10]} 11. e4 {[%emt 0:6:2] D78: Fianchetto Grünfeld: 6 0-0 c6.} (11. Rd1 $5 )Rfd8 {[%emt 0:1:32]} 12. h3 {[%emt 0:1:36]} c5 {[%emt 0:23:27][%cal Rc5d4]} 13. d5 {[%emt 0:0:31] White is slightly better.} Bd7 {[%emt 0:0:1]} 14. Qd1 {[%emt 0:3:22]} (14. Qc4 {with more complications.} e6 15. d6 e5 16. Nxe5 Be6 17. Qe2 )e6 {[%emt 0:0:57] [#]} 15. Ne5 $5 $146 {[%emt 0:13:3][%cal Bf3e5,Be5d3,Bd3b4][%mdl 8] Wards off Bc6 An interesting novelty.} ({Predecessor:} 15. Nd2 exd5 16. exd5 Bb5 17. Re1 Nb4 18. Nxb5 Qxb5 19. a4 Qa6 20. Ne4 Nfxd5 21. Qe2 Qxe2 22. Rxe2 {½-½ Wenzel,B (2003)-Riess,A (2208) Lueneburg IM 2016 (6)} )exd5 {[%emt 0:10:54]} 16. exd5 {[%emt 0:0:33]} ({Don't play} 16. Nxd5 $6 Nxd5 17. Nxd7 Rxd7 $11 )Be8 {[%emt 0:8:9]} (16... Nc7 $14 {should be considered.} )17. Re1 $1 $16 {[%emt 0:6:7]} Nc7 {[%emt 0:2:20][%cal Oe8c6]} 18. a4 {[%emt 0:3:8][%cal Ba2a4,Ba4a5][%mdl 32]} Ne6 {[%emt 0:18:42]} (18... Rac8 $142 )19. a5 {[%emt 0:2:40]} Qa6 {[%emt 0:3:22]} 20. Nd3 $1 {[%emt 0:6:27][%cal Oe1e6] White is more active.} Rac8 {[%emt 0:5:28][%cal Ob7b5]} 21. Be3 $1 {[%emt 0:11:49]} c4 {[%emt 0:0:52] [#]} 22. Nb4 {[%emt 0:7:46]} Qd6 {[%emt 0:0:5]} 23. dxe6 {[%emt 0:0:16]} Qxb4 {[%emt 0:0:4] [#]} 24. Qe2 {[%emt 0:0:15]} b6 {[%emt 0:2:10]} (24... fxe6 $16 25. Bxa7 Bf7 )25. axb6 $18 {[%emt 0:11:24]} axb6 {[%emt 0:0:1]} 26. Bg5 {[%emt 0:0:14] aiming for Qf3.} Qc5 {[%emt 0:4:25]} 27. h4 $36 {[%emt 0:0:53][%mdl 2048] Hoping for Bh3. White has strong initiative.} Rd3 {[%emt 0:1:20]} (27... h6 {might work better.} )28. Ra7 {[%emt 0:3:30]} Qf5 $2 {[%emt 0:7:33]} (28... Rxg3 29. Bxf6 Bxf6 )29. Bxf6 {[%emt 0:6:35]} Bxf6 {[%emt 0:0:42]} 30. exf7+ {[%emt 0:3:30]} ({Not} 30. Be4 Qxe6 31. Bxd3 cxd3 32. Qxe6 fxe6 $16 )Bxf7 {[%emt 0:0:2]} 31. Be4 {[%emt 0:0:11]} Re8 {[%emt 0:2:18]} 32. Bxf5 {[%emt 0:1:20] White wants to mate with Qxe8+.} Rxe2 {[%emt 0:0:4]} 33. Rxe2 {[%emt 0:1:40] Black must now prevent Be6.} ({Much less strong is} 33. Nxe2 gxf5 34. Nf4 Rd8 $18 )gxf5 {[%emt 0:0:7]} 34. Rb7 {[%emt 0:0:27]} Rd6 {[%emt 0:2:40]} 35. Re1 {[%emt 0:3:32]} Kf8 {[%emt 0:0:13]} 36. Ra1 {[%emt 0:0:27]} h5 {[%emt 0:1:38]} 37. Ra8+ {[%emt 0:0:42]} Bd8 {[%emt 0:0:1]} 38. Kf1 {[%emt 0:1:11]} Ke8 {[%emt 0:0:21]} 39. Ke2 {[%emt 0:1:5]} Re6+ {[%emt 0:0:15]} 40. Kf3 {[%emt 0:0:0]} Rd6 {[%emt 0:0:0]} 41. Raa7 {[%emt 0:5:8]} Be6 {[%emt 0:2:7]} 42. Rh7 {[%emt 0:2:38] Threatening mate with Rh8+.} Bd7 {[%emt 0:0:15]} 43. Rh8+ {[%emt 0:0:35]} Ke7 {[%emt 0:0:4]} 44. Kf4 {[%emt 0:1:50]} Rd2 {[%emt 0:1:32]} 45. Ke5 {[%emt 0:2:55] Black got outplayed after the opening.   Weighted Error Value: White=0.12 (very precise) /Black=0.63} 1-0